lending/lending_fUSD_20250917
["ID","MTS","AMOUNT","RATE_DAILY","PERIOD"]
[385920804,1758133855183,-1149.9,0.00024367,2]
[385920805,1758133855216,-925.0567725,0.00024367,2]
[385920806,1758133855225,-44748.06641022,0.00024798,3]
[385920807,1758133855256,-400.0,0.00024584,2]
[385920808,1758133855266,-1118.59999904,0.00024798,3]
[385920809,1758133855277,-1116.775,0.00024798,3]
[385920810,1758133855291,-2944.9922002,0.00024798,3]
[385920814,1758134473557,152.04,0.00011548,2]
[385920815,1758134473782,152.04,0.00015397,2]
[385920816,1758134474223,152.04,0.00019246,2]
[385920818,1758134686262,-1200.0,0.00021997,2]
[385920819,1758134686301,-300.0,0.00021997,2]
[385920820,1758134686334,-300.0,0.00021997,2]
[385920821,1758134686367,-389.71,0.00021998,2]
[385920822,1758134686406,-1619.58,0.00021998,2]
[385920823,1758134686420,-380.42,0.00021998,2]
[385920824,1758134686429,-819.58,0.00021998,2]
[385920825,1758134686444,-300.0,0.00021998,2]
[385920826,1758134686460,-300.0,0.00021998,2]
[385920827,1758134686471,-389.71,0.00021998,2]
[385920828,1758134686483,-190.71,0.00021998,2]
[385920829,1758134686492,-1809.29,0.00021998,2]
[385920830,1758134705305,408.39058155,0.00018,5]
[385920852,1758135031923,-2284.27096272,0.00021897,2]
[385920853,1758135031934,-572.32736704,0.000219,2]
[385920854,1758135031943,-198.0,0.00021997,2]
[385920855,1758135031954,-300.0,0.00021997,2]
[385920856,1758135031963,-300.0,0.00021997,2]
[385920857,1758135031973,-1200.0,0.00021997,2]
[385920858,1758135031984,-190.71,0.00021998,2]
[385920859,1758135031994,-2000.0,0.00021998,2]
[385920860,1758135032003,-1213.135,0.00021998,2]
[385920861,1758135032013,-2000.0,0.00021998,2]
[385920862,1758135032023,-2000.0,0.00021998,2]
[385920863,1758135032033,-2000.0,0.00021998,2]
[385920864,1758135032043,-789.31353266,0.00021998,2]
[385920865,1758135032055,-1210.68646734,0.00021998,2]
[385920866,1758135032065,-1129.708,0.00021998,2]
[385920867,1758135032079,-150.0,0.00022241,2]
[385920868,1758135032090,-150.0,0.00022241,2]
[385920869,1758135032100,-150.0,0.00022241,2]
[385920870,1758135032110,-150.0,0.00022241,2]
[385920871,1758135032120,-150.0,0.00022241,2]
[385920872,1758135032130,-150.0,0.00022241,2]
[385920873,1758135032140,-208.33498429,0.00022241,2]
[385920874,1758135032151,-150.0,0.00022241,2]
[385920875,1758135032161,-150.0,0.00022241,2]
[385920876,1758135032171,-150.0,0.00022241,2]
[385920877,1758135032181,-666.0,0.00022702,3]
[385920878,1758135032191,-668.28,0.0002275,2]
[385920879,1758135032201,-609.01,0.0002275,2]
[385920880,1758135032211,-150.0,0.00022859,4]
[385920881,1758135032221,-197.19,0.00023031,2]
[385920882,1758135032231,-150.0,0.00023043,2]
[385920883,1758135032241,-166.51,0.00023058,2]
[385920884,1758135032251,-150.0,0.00023065,4]
[385920885,1758135032261,-150.0,0.00023065,4]
[385920886,1758135032271,-152.04,0.00023095,2]
[385920887,1758135032281,-522.83,0.00023112,2]
[385920888,1758135032291,-200.0,0.00023153,2]
[385920889,1758135032301,-736.09,0.00023367,2]
[385920890,1758135032311,-500.0,0.00023367,2]
[385920891,1758135032321,-410.99372449,0.00023367,2]
[385920892,1758135032331,-400.0,0.00023367,2]
[385920893,1758135032341,-400.0,0.00023367,2]
[385920894,1758135032351,-394.3662751,0.00023367,2]
[385920895,1758135032362,-400.0,0.00023367,2]
[385920896,1758135032372,-400.0,0.00023367,2]
[385920897,1758135032382,-400.0,0.00023367,2]
[385920898,1758135032392,-400.0,0.00023367,2]
[385920899,1758135032402,-400.0,0.00023367,2]
[385920900,1758135032412,-400.0,0.00023367,2]
[385920901,1758135032422,-400.0,0.00023367,2]
[385920902,1758135032432,-400.0,0.00023367,2]
[385920903,1758135032442,-400.0,0.00023367,2]
[385920904,1758135032565,-400.0,0.00023367,2]
[385920905,1758135032576,-400.0,0.00023367,2]
[385920906,1758135032587,-400.0,0.00023367,2]
[385920907,1758135032596,-315.43114192,0.00023367,2]
[385920908,1758135032605,-400.0,0.00023367,2]
[385920909,1758135032614,-400.0,0.00023367,2]
[385920910,1758135032624,-400.0,0.00023367,2]
[385920911,1758135032633,-400.0,0.00023367,2]
[385920912,1758135032642,-400.0,0.00023367,2]
[385920913,1758135032652,-526.83,0.00023367,2]
[385920914,1758135032665,-400.0,0.00023367,2]
[385920915,1758135032675,-433.04,0.00023367,2]
[385920916,1758135032685,-400.0,0.00023367,2]
[385920917,1758135032695,-400.0,0.00023367,2]
[385920918,1758135032707,-400.0,0.00023367,2]
[385920919,1758135032716,-400.0,0.00023367,2]
[385920920,1758135032726,-400.0,0.00023367,2]
[385920921,1758135032735,-400.0,0.00023367,2]
[385920922,1758135032745,-400.0,0.00023367,2]
[385920923,1758135032754,-400.0,0.00023367,2]
[385920924,1758135032763,-400.0,0.00023367,2]
[385920925,1758135032773,-400.0,0.00023367,2]
[385920926,1758135032782,-400.0,0.00023367,2]
[385920927,1758135032791,-400.0,0.00023367,2]
[385920928,1758135032801,-400.0,0.00023367,2]
[385920929,1758135032810,-400.0,0.00023367,2]
[385920930,1758135032820,-400.0,0.00023367,2]
[385920931,1758135032829,-400.0,0.00023367,2]
[385920932,1758135032838,-400.0,0.00023367,2]
[385920933,1758135032848,-500.0,0.00023367,14]
[385920934,1758135032857,-401.80690724,0.00023367,2]
[385920935,1758135032866,-400.0,0.00023367,2]
[385920936,1758135032876,-400.0,0.00023367,2]
[385920937,1758135032884,-402.43656381,0.00023367,2]
[385920938,1758135032894,-400.0,0.00023367,2]
[385920939,1758135032903,-400.0,0.00023367,2]
[385920940,1758135032912,-400.0,0.00023367,2]
[385920941,1758135032921,-400.0,0.00023367,2]
[385920942,1758135032931,-400.0,0.00023367,2]
[385920943,1758135032940,-400.0,0.00023367,2]
[385920944,1758135032949,-438.92,0.00023367,2]
[385920945,1758135032958,-400.0,0.00023367,2]
[385920946,1758135032968,-400.0,0.00023367,2]
[385920947,1758135032977,-481.36,0.00023367,2]
[385920948,1758135032986,-400.0,0.00023367,2]
[385920949,1758135032995,-400.0,0.00023367,2]
[385920950,1758135033004,-400.0,0.00023367,2]
[385920951,1758135033013,-400.0,0.00023367,2]
[385920952,1758135033022,-400.0,0.00023367,2]
[385920953,1758135033032,-401.26262474,0.00023367,2]
[385920954,1758135033042,-94.87331107,0.00023367,2]
[385920955,1758135033055,-305.12668893,0.00023367,2]
[385920956,1758135033064,-365.33205458,0.00023367,2]
[385920957,1758135033091,-38.3173318,0.00023367,2]
[385920958,1758135033100,-408.02869467,0.00023367,2]
[385920959,1758135033109,-400.0,0.00023367,2]
[385920960,1758135033122,-406.49653225,0.00023367,2]
[385920961,1758135033132,-401.22426632,0.00023367,2]
[385920962,1758135033141,-400.0,0.00023367,2]
[385920963,1758135033151,-401.62499804,0.00023367,2]
[385920964,1758135033160,-400.0,0.00023367,2]
[385920965,1758135033170,-400.0,0.00023367,2]
[385920966,1758135033179,-400.0,0.00023367,2]
[385920967,1758135033189,-400.0,0.00023367,2]
[385920968,1758135033199,-400.0,0.00023367,2]
[385920969,1758135033208,-400.0,0.00023367,2]
[385920970,1758135033217,-400.0,0.00023367,2]
[385920971,1758135033227,-400.0,0.00023367,2]
[385920972,1758135033236,-400.0,0.00023367,2]
[385920973,1758135033246,-400.0,0.00023367,2]
[385920974,1758135033255,-400.0,0.00023367,2]
[385920975,1758135033264,-402.13619307,0.00023367,2]
[385920976,1758135033274,-400.0,0.00023367,2]
[385920977,1758135033283,-400.0,0.00023367,2]
[385920978,1758135033292,-140.55105599,0.00023367,2]
[385920979,1758135033304,-259.44894401,0.00023367,2]
[385920980,1758135033313,-400.0,0.00023367,2]
[385920981,1758135033323,-400.0,0.00023367,2]
[385920982,1758135033335,-400.0,0.00023367,2]
[385920983,1758135033345,-400.0,0.00023367,2]
[385920984,1758135033354,-400.0,0.00023367,2]
[385920985,1758135033364,-400.0,0.00023367,2]
[385920986,1758135033373,-400.0,0.00023367,2]
[385920987,1758135033383,-400.0,0.00023367,2]
[385920988,1758135033393,-400.0,0.00023367,2]
[385920989,1758135033402,-402.636251,0.00023367,2]
[385920990,1758135033412,-400.0,0.00023367,2]
[385920991,1758135033422,-400.0,0.00023367,2]
[385920992,1758135033432,-400.0,0.00023367,2]
[385920993,1758135033442,-400.0,0.00023367,2]
[385920994,1758135033451,-500.0,0.00023367,2]
[385920995,1758135033461,-401.00254842,0.00023367,2]
[385920996,1758135033471,-400.0,0.00023367,2]
[385920997,1758135033480,-400.0,0.00023367,2]
[385920998,1758135033490,-400.0,0.00023367,2]
[385920999,1758135033500,-400.0,0.00023367,2]
[385921000,1758135033512,-402.16761982,0.00023367,2]
[385921001,1758135033522,-400.0,0.00023367,2]
[385921002,1758135033532,-401.05712242,0.00023367,2]
[385921003,1758135033541,-401.20697703,0.00023367,2]
[385921004,1758135033551,-400.0,0.00023367,2]
[385921005,1758135033561,-400.0,0.00023367,2]
[385921006,1758135033571,-400.0,0.00023367,2]
[385921007,1758135033581,-400.0,0.00023367,2]
[385921008,1758135033591,-400.0,0.00023367,2]
[385921009,1758135033602,-400.0,0.00023367,2]
[385921010,1758135033612,-400.0,0.00023367,2]
[385921011,1758135033622,-400.0,0.00023367,2]
[385921012,1758135033633,-400.0,0.00023367,2]
[385921013,1758135033643,-401.6086311,0.00023367,2]
[385921014,1758135033653,-400.0,0.00023367,2]
[385921015,1758135033663,-400.0,0.00023367,2]
[385921016,1758135033674,-400.0,0.00023367,2]
[385921017,1758135033685,-400.0,0.00023367,2]
[385921018,1758135033698,-404.30613765,0.00023367,2]
[385921019,1758135033708,-500.0,0.00023367,2]
[385921020,1758135033718,-400.0,0.00023367,2]
[385921021,1758135033727,-400.0,0.00023367,2]
[385921022,1758135033736,-400.0,0.00023367,2]
[385921023,1758135033746,-404.80715065,0.00023367,2]
[385921024,1758135033755,-410.20645907,0.00023367,2]
[385921025,1758135033764,-400.0,0.00023367,2]
[385921026,1758135033773,-500.0,0.00023367,2]
[385921027,1758135033782,-549.71638499,0.00023367,2]
[385921028,1758135033791,-400.0,0.00023367,2]
[385921029,1758135033801,-416.62107922,0.00023367,2]
[385921030,1758135033810,-400.0,0.00023367,2]
[385921031,1758135033819,-400.0,0.00023367,2]
[385921032,1758135033828,-400.0,0.00023367,2]
[385921033,1758135033838,-400.0,0.00023367,2]
[385921034,1758135033847,-400.0,0.00023367,2]
[385921035,1758135033857,-400.0,0.00023367,2]
[385921036,1758135033867,-398.038482,0.00023367,2]
[385921037,1758135033876,-400.0,0.00023367,2]
[385921038,1758135033886,-400.0,0.00023367,2]
[385921039,1758135033896,-400.0,0.00023367,2]
[385921040,1758135033905,-400.0,0.00023367,2]
[385921041,1758135033914,-405.92061742,0.00023367,2]
[385921042,1758135033924,-400.0,0.00023367,2]
[385921043,1758135033933,-401.36130891,0.00023367,2]
[385921044,1758135033943,-404.19987464,0.00023367,2]
[385921045,1758135033953,-400.0,0.00023367,2]
[385921046,1758135033962,-400.0,0.00023367,2]
[385921047,1758135033971,-400.0,0.00023367,2]
[385921048,1758135033982,-400.0,0.00023367,2]
[385921049,1758135033991,-400.0,0.00023367,2]
[385921050,1758135034000,-400.0,0.00023367,2]
[385921051,1758135034009,-500.0,0.00023367,2]
[385921052,1758135034018,-402.60176786,0.00023367,2]
[385921053,1758135034028,-405.26247772,0.00023367,2]
[385921054,1758135034037,-400.0,0.00023367,2]
[385921055,1758135034046,-400.0,0.00023367,2]
[385921056,1758135034055,-400.0,0.00023367,2]
[385921057,1758135034064,-500.0,0.00023367,2]
[385921058,1758135034073,-400.0,0.00023367,2]
[385921059,1758135034084,-400.0,0.00023367,2]
[385921060,1758135034093,-400.0,0.00023367,2]
[385921061,1758135034104,-400.0,0.00023367,2]
[385921062,1758135034113,-400.0,0.00023367,2]
[385921063,1758135034123,-401.20520922,0.00023367,2]
[385921064,1758135034133,-402.29083013,0.00023367,2]
[385921065,1758135034144,-400.0,0.00023367,2]
[385921066,1758135034153,-400.0,0.00023367,2]
[385921067,1758135034162,-500.0,0.00023367,2]
[385921068,1758135034172,-400.0,0.00023367,2]
[385921069,1758135034181,-400.0,0.00023367,2]
[385921070,1758135034191,-400.0,0.00023367,2]
[385921071,1758135034201,-414.19380701,0.00023367,2]
[385921072,1758135034210,-403.70103251,0.00023367,2]
[385921073,1758135034219,-425.32,0.00023367,2]
[385921074,1758135034228,-500.0,0.00023367,2]
[385921075,1758135034237,-403.81745474,0.00023367,2]
[385921076,1758135034246,-400.0,0.00023367,2]
[385921077,1758135034255,-403.43247027,0.00023367,2]
[385921078,1758135034274,-400.0,0.00023367,2]
[385921079,1758135034285,-539.74,0.00023367,2]
[385921080,1758135034294,-400.0,0.00023367,2]
[385921081,1758135034304,-460.05292551,0.00023367,2]
[385921082,1758135034318,-50.02707449,0.00023367,2]
[385921083,1758135034327,-403.25,0.00023367,2]
[385921084,1758135034339,-56.57727358,0.00023367,2]
[385921085,1758135034351,-360.56797514,0.00023367,2]
[385921086,1758135034361,-400.0,0.00023367,2]
[385921087,1758135034371,-400.0,0.00023367,2]
[385921088,1758135034381,-402.20665089,0.00023367,2]
[385921089,1758135034390,-400.0,0.00023367,2]
[385921090,1758135034400,-646.16,0.00023367,2]
[385921091,1758135034409,-400.0,0.00023367,2]
[385921092,1758135034419,-400.0,0.00023367,2]
[385921093,1758135034428,-400.0,0.00023367,2]
[385921094,1758135034438,-400.0,0.00023367,2]
[385921095,1758135034449,-500.0,0.00023367,2]
[385921096,1758135034458,-400.0,0.00023367,2]
[385921097,1758135034468,-400.0,0.00023367,2]
[385921098,1758135034478,-400.0,0.00023367,2]
[385921099,1758135034488,-400.0,0.00023367,2]
[385921100,1758135034498,-400.0,0.00023367,2]
[385921101,1758135034508,-400.0,0.00023367,2]
[385921102,1758135034518,-400.0,0.00023367,2]
[385921103,1758135034528,-400.0,0.00023367,2]
[385921104,1758135034537,-434.35,0.00023367,2]
[385921105,1758135034546,-400.0,0.00023367,2]
[385921106,1758135034556,-400.0,0.00023367,2]
[385921107,1758135034565,-165.17612107,0.00023367,2]
[385921108,1758135034575,-500.0,0.00023367,2]
[385921109,1758135034587,-500.0,0.00023367,2]
[385921110,1758135034597,-500.0,0.00023367,2]
[385921111,1758135034606,-500.0,0.00023367,2]
[385921112,1758135034616,-500.0,0.00023367,2]
[385921113,1758135034625,-500.0,0.00023367,2]
[385921114,1758135034635,-500.0,0.00023367,2]
[385921115,1758135034644,-43.31625289,0.00023367,2]
[385921116,1758135034669,-453.57841772,0.00023367,2]
[385921117,1758135034681,-3.10532939,0.00023367,2]
[385921118,1758135034691,-500.0,0.00023367,2]
[385921119,1758135034705,-500.0,0.00023367,2]
[385921120,1758135034715,-500.0,0.00023367,2]
[385921121,1758135034725,-500.0,0.00023367,2]
[385921122,1758135034734,-39.21943769,0.00023367,2]
[385921123,1758135034754,-460.78056231,0.00023367,2]
[385921124,1758135034764,-205.21943769,0.00023367,2]
[385921125,1758135034776,-294.78056231,0.00023367,2]
[385921126,1758135034786,-500.0,0.00023367,2]
[385921127,1758135034796,-333.71912502,0.00023367,2]
[385921128,1758135034806,-288.83013181,0.00023367,2]
[385921129,1758135034818,-211.16986819,0.00023367,2]
[385921130,1758135034827,-500.0,0.00023367,2]
[385921131,1758135034838,-500.0,0.00023367,2]
[385921132,1758135034848,-565.40130934,0.00023367,2]
[385921133,1758135034857,-169.10714989,0.00023367,2]
[385921134,1758135034867,-82.0521767,0.00023367,2]
[385921135,1758135034878,-76.48923114,0.00023367,2]
[385921136,1758135034888,-178.85529639,0.00023367,2]
[385921137,1758135034897,-174.48065729,0.00023367,2]
[385921138,1758135034907,-150.99,0.00023368,2]
[385921139,1758135034917,-822.59778188,0.00023368,2]
[385921140,1758135034928,-9177.39221812,0.00023368,2]
[385921141,1758135034937,-5784.56778188,0.00023368,2]
[385921147,1758135037683,-1615.54615361,0.00023368,2]
[385921148,1758135038161,-2599.87606451,0.00023368,2]
[385921149,1758135038171,-299.99,0.00023368,7]
[385921150,1758135038180,-3749.02,0.00023368,2]
[385921151,1758135038190,-999.99,0.00023368,2]
[385921152,1758135038200,-1088.0,0.00023449,2]
[385921162,1758135038434,-150.0,0.00023477,4]
[385921165,1758135038453,-150.0,0.00023546,7]
[385921166,1758135038463,-400.0,0.00023641,2]
[385921167,1758135038473,-400.0,0.00023641,2]
[385921169,1758135038483,-400.0,0.00023641,2]
[385921171,1758135038493,-400.0,0.00023641,2]
[385921173,1758135038502,-400.0,0.00023641,2]
[385921175,1758135038512,-400.0,0.00023641,2]
[385921177,1758135038522,-442.40164348,0.00023641,2]
[385921178,1758135038531,-400.0,0.00023641,2]
[385921180,1758135038541,-400.0,0.00023641,2]
[385921182,1758135038550,-400.0,0.00023641,2]
[385921184,1758135038560,-526.83,0.00023641,2]
[385921186,1758135038570,-433.04,0.00023641,2]
[385921187,1758135038580,-400.0,0.00023641,2]
[385921189,1758135038590,-400.0,0.00023641,2]
[385921191,1758135038599,-400.0,0.00023641,2]
[385921193,1758135038609,-316.62987318,0.00023641,2]
[385921195,1758135038619,-400.0,0.00023641,2]
[385921197,1758135038628,-400.0,0.00023641,2]
[385921200,1758135038638,-400.0,0.00023641,2]
[385921202,1758135038648,-400.0,0.00023641,2]
[385921205,1758135038658,-400.0,0.00023641,2]
[385921207,1758135038669,-559.52505773,0.00023641,14]
[385921209,1758135038679,-400.0,0.00023641,2]
[385921210,1758135038689,-400.0,0.00023641,2]
[385921212,1758135038702,-400.0,0.00023641,2]
[385921214,1758135038711,-400.0,0.00023641,2]
[385921216,1758135038721,-438.92,0.00023641,2]
[385921217,1758135038731,-400.0,0.00023641,2]
[385921218,1758135038742,-481.36,0.00023641,2]
[385921219,1758135038752,-400.0,0.00023641,2]
[385921220,1758135038763,-196.06579898,0.00023641,2]
[385921221,1758135038773,-400.0,0.00023641,2]
[385921222,1758135038782,-400.0,0.00023641,2]
[385921223,1758135038792,-400.0,0.00023641,2]
[385921224,1758135038801,-400.0,0.00023641,2]
[385921225,1758135038811,-400.0,0.00023641,2]
[385921226,1758135038820,-410.12004195,0.00023641,2]
[385921227,1758135038830,-400.0,0.00023641,2]
[385921228,1758135038840,-400.0,0.00023641,2]
[385921229,1758135038851,-400.0,0.00023641,2]
[385921230,1758135038861,-400.0,0.00023641,2]
[385921231,1758135038870,-400.0,0.00023641,2]
[385921232,1758135038880,-400.0,0.00023641,2]
[385921233,1758135038890,-400.0,0.00023641,2]
[385921234,1758135038899,-400.0,0.00023641,2]
[385921235,1758135038909,-400.0,0.00023641,2]
[385921236,1758135038918,-400.0,0.00023641,2]
[385921237,1758135038928,-400.0,0.00023641,2]
[385921238,1758135038937,-400.0,0.00023641,2]
[385921239,1758135038947,-400.0,0.00023641,2]
[385921240,1758135038956,-400.0,0.00023641,2]
[385921241,1758135038966,-400.0,0.00023641,2]
[385921242,1758135038975,-400.0,0.00023641,2]
[385921243,1758135038985,-400.0,0.00023641,2]
[385921244,1758135038994,-400.0,0.00023641,2]
[385921245,1758135039004,-400.0,0.00023641,2]
[385921246,1758135039014,-400.0,0.00023641,2]
[385921247,1758135039023,-400.0,0.00023641,2]
[385921248,1758135039033,-400.0,0.00023641,2]
[385921249,1758135039042,-301.06626307,0.00023641,2]
[385921250,1758135039052,-400.0,0.00023641,2]
[385921251,1758135039061,-400.0,0.00023641,2]
[385921252,1758135039072,-400.0,0.00023641,2]
[385921253,1758135039081,-400.0,0.00023641,2]
[385921254,1758135039092,-400.0,0.00023641,2]
[385921255,1758135039102,-400.0,0.00023641,2]
[385921256,1758135039112,-400.0,0.00023641,2]
[385921257,1758135039122,-400.0,0.00023641,2]
[385921258,1758135039132,-400.0,0.00023641,2]
[385921259,1758135039142,-400.0,0.00023641,2]
[385921260,1758135039151,-415.92380025,0.00023641,2]
[385921261,1758135039161,-400.0,0.00023641,2]
[385921263,1758135039170,-416.91516891,0.00023641,2]
[385921265,1758135039180,-425.32,0.00023641,2]
[385921267,1758135039190,-539.74,0.00023641,2]
[385921268,1758135039200,-400.0,0.00023641,2]
[385921269,1758135039210,-510.08,0.00023641,2]
[385921270,1758135039220,-403.25,0.00023641,2]
[385921271,1758135039229,-400.0,0.00023641,2]
[385921272,1758135039239,-400.0,0.00023641,2]
[385921273,1758135039249,-400.0,0.00023641,2]
[385921274,1758135039258,-646.16,0.00023641,2]
[385921275,1758135039268,-383.01258319,0.00023641,2]
[385921276,1758135039277,-400.0,0.00023641,2]
[385921277,1758135039286,-400.0,0.00023641,2]
[385921278,1758135039296,-400.0,0.00023641,2]
[385921279,1758135039305,-400.0,0.00023641,2]
[385921280,1758135039315,-400.0,0.00023641,2]
[385921281,1758135039325,-440.51888401,0.00023641,2]
[385921282,1758135039334,-400.0,0.00023641,2]
[385921283,1758135039345,-400.0,0.00023641,2]
[385921284,1758135039354,-400.0,0.00023641,2]
[385921285,1758135039363,-434.35,0.00023641,2]
[385921286,1758135039373,-400.0,0.00023641,2]
[385921287,1758135039382,-368.87,0.00023726,2]
[385921288,1758135039392,-539.59,0.00023873,2]
[385921289,1758135039402,-1192.69,0.00023873,2]
[385921290,1758135039412,-1192.69,0.00023873,2]
[385921291,1758135039421,-1192.69,0.00023873,2]
[385921292,1758135039430,-150.0,0.00023889,4]
[385921293,1758135039441,-150.0,0.00023889,4]
[385921294,1758135039452,-1600.0,0.000239,8]
[385921295,1758135039462,-420.0,0.00023903,2]
[385921296,1758135039472,-400.0,0.00023915,2]
[385921297,1758135039482,-400.0,0.00023915,2]
[385921298,1758135039492,-400.0,0.00023915,2]
[385921299,1758135039502,-406.32638948,0.00023915,2]
[385921300,1758135039512,-400.0,0.00023915,2]
[385921301,1758135039522,-400.0,0.00023915,2]
[385921302,1758135039532,-400.0,0.00023915,2]
[385921303,1758135039542,-400.0,0.00023915,2]
[385921304,1758135039551,-400.0,0.00023915,2]
[385921305,1758135039560,-526.83,0.00023915,2]
[385921306,1758135039569,-433.04,0.00023915,2]
[385921307,1758135039579,-400.0,0.00023915,2]
[385921308,1758135039588,-400.0,0.00023915,2]
[385921309,1758135039598,-179.66391755,0.00023915,2]
[385921311,1758135039607,-450.68030213,0.00023915,2]
[385921313,1758135039617,-400.0,0.00023915,2]
[385921314,1758135039627,-400.0,0.00023915,2]
[385921315,1758135039636,-400.0,0.00023915,2]
[385921316,1758135039645,-400.0,0.00023915,2]
[385921317,1758135039654,-400.0,0.00023915,2]
[385921318,1758135039664,-438.92,0.00023915,2]
[385921319,1758135039674,-400.0,0.00023915,2]
[385921320,1758135039684,-481.36,0.00023915,2]
[385921321,1758135039694,-400.0,0.00023915,2]
[385921322,1758135039708,-400.0,0.00023915,2]
[385921324,1758135039717,-400.0,0.00023915,2]
[385921325,1758135039726,-400.0,0.00023915,2]
[385921326,1758135039736,-400.0,0.00023915,2]
[385921327,1758135039745,-400.0,0.00023915,2]
[385921328,1758135039754,-400.0,0.00023915,2]
[385921329,1758135039763,-400.0,0.00023915,2]
[385921330,1758135039773,-203.98425919,0.00023915,2]
[385921331,1758135039782,-400.0,0.00023915,2]
[385921332,1758135039792,-400.0,0.00023915,2]
[385921333,1758135039801,-400.0,0.00023915,2]
[385921334,1758135039810,-400.0,0.00023915,2]
[385921335,1758135039820,-400.0,0.00023915,2]
[385921336,1758135039829,-400.0,0.00023915,2]
[385921337,1758135039840,-400.0,0.00023915,2]
[385921338,1758135039850,-400.0,0.00023915,2]
[385921339,1758135039860,-400.0,0.00023915,2]
[385921340,1758135039869,-400.0,0.00023915,2]
[385921341,1758135039878,-400.0,0.00023915,2]
[385921342,1758135039888,-247.365068,0.00023915,2]
[385921343,1758135039897,-400.0,0.00023915,2]
[385921344,1758135039906,-400.0,0.00023915,2]
[385921345,1758135039916,-400.0,0.00023915,2]
[385921346,1758135039925,-400.0,0.00023915,2]
[385921347,1758135039934,-400.0,0.00023915,2]
[385921348,1758135039944,-400.0,0.00023915,2]
[385921349,1758135039954,-400.0,0.00023915,2]
[385921350,1758135039963,-400.0,0.00023915,2]
[385921351,1758135039972,-425.32,0.00023915,2]
[385921352,1758135039982,-539.74,0.00023915,2]
[385921353,1758135039992,-400.0,0.00023915,2]
[385921354,1758135040001,-510.08,0.00023915,2]
[385921355,1758135040010,-403.25,0.00023915,2]
[385921356,1758135040020,-400.0,0.00023915,2]
[385921357,1758135040029,-400.0,0.00023915,2]
[385921358,1758135040039,-400.0,0.00023915,2]
[385921359,1758135040048,-646.16,0.00023915,2]
[385921360,1758135040058,-473.86558852,0.00023915,2]
[385921361,1758135040068,-400.0,0.00023915,2]
[385921362,1758135040078,-400.0,0.00023915,2]
[385921363,1758135040088,-400.0,0.00023915,2]
[385921364,1758135040098,-400.0,0.00023915,2]
[385921365,1758135040108,-400.0,0.00023915,2]
[385921366,1758135040118,-408.23009568,0.00023915,2]
[385921367,1758135040127,-413.09752119,0.00023915,2]
[385921368,1758135040137,-434.35,0.00023915,2]
[385921369,1758135040148,-262.83476066,0.00023915,2]
[385921370,1758135040157,-2500.0,0.00023973,2]
[385921371,1758135040167,-15906.75370398,0.00024,2]
[385921372,1758135040177,-191.54,0.00024,2]
[385921373,1758135040186,-191.6,0.00024,2]
[385921374,1758135040196,-1680.0,0.00024016,2]